Cogmind - Beta 11.1 @@@ ROGUE MODE // 2022.07.10 @ 21:26:20 Player: Sigil Result: Self-destructed Performance ------------- Evolutions (3) 1500 Regions Visited (8) 1600 Robots Destroyed (15) 75 Value Destroyed (491) 491 Prototype IDs (5) 100 Alien Tech Used (0) 0 Bonus (957) 957 TOTAL SCORE: 4723 Bonus ------- Pacifist 270 High Alert Combat Kills 28 Follower Combat Kills 159 Entered Garrisons 200 Aligned with FarCom 300 Cogmind --------- Core Integrity 538/700 Matter 123/300 Energy 100/100 System Corruption 0% Temperature Cool (0) Movement Core (400) Ox7 Location -7/Garrison Parts ------- > --- POWER (2) -------- (None) > --- PROPULSION (4) --- (None) > --- UTILITY (5) ------ Large Storage Unit Improved Signal Interpreter > --- WEAPON (2) ------- Katana > --- INVENTORY (15) --- Micro Nuclear Core Micro Nuclear Core Backup Propulsion III Backup Propulsion III Improved Flight Unit Improved VTOL Module Xenon Bombardment Thruster Small Battery (100) Improved Signal Interpreter Improved Signal Interpreter Reaction Control System Layered Light Armor Plating System Restoration Module Deploy-a-Sentry Deploy-a-Sentry Peak State ------------ > --- POWER ------------ Micro Nuclear Core Micro Nuclear Core > --- PROPULSION ------- Flying Fortress v7 > --- UTILITY ---------- Large Storage Unit Sensor Array Improved Signal Interpreter Cloak of Protection Improved Shield Generator > --- WEAPON ----------- Heavy Rocket Launcher Datajack > --- INVENTORY -------- Micro Nuclear Core Micro Nuclear Core Improved Flight Unit Improved VTOL Module Xenon Bombardment Thruster Small Battery Improved Signal Interpreter Reaction Control System Layered Light Armor Plating System Restoration Module Enhanced Autogun Rocket Launcher Katana Deploy-a-Sentry Deploy-a-Sentry [Rating: 67] Favorites ----------- Power Light Nuclear Core Engine Light Ion Engine Power Core Light Nuclear Core Propulsion Aluminum Leg Leg Aluminum Leg Hover Unit Backup Propulsion III Flight Unit Flying Fortress v7 Utility Sensor Array Device Sensor Array Storage Large Storage Unit Processor Improved Signal Interpreter Protection Utility Shielding Weapon Light Assault Rifle Energy Gun Backup Laser III Ballistic Gun Light Assault Rifle Launcher Rocket Launcher Special Weapon Plasma Cutter Slashing Weapon Katana Special Melee Weapon Datajack Build | -11 -10 -10 -10 -9 -8 -8 -7 -7 ------- Run | Scr Mat Min Exi Min Mat Sto Fac Gar Slots Evolved 6 | . . . . . 4 . 2 . Power 1 | . . . . . 1 . . . Propulsion 2 | . . . . . 2 . . . Utility 3 | . . . . . 1 . 2 . Weapon . | . . . . . . . . . Parts Attached 53 | 6 3 . 12 . 4 12 16 . Power 8 | 1 . . 1 . 1 1 4 . Engine 3 | 1 . . 1 . . . 1 . Core 5 | . . . . . 1 1 3 . Reactor . | . . . . . . . . . Propulsion 8 | 2 . . 2 . 1 2 1 . Treads . | . . . . . . . . . Leg 4 | 2 . . 2 . . . . . Wheel . | . . . . . . . . . Hover . | . . . . . . . . . Flight 4 | . . . . . 1 2 1 . Utility 20 | 1 3 . 8 . 2 1 5 . Device 7 | . 2 . 2 . 1 . 2 . Storage 9 | 1 1 . 5 . . 1 1 . Processor 1 | . . . . . . . 1 . Hackware . | . . . . . . . . . Protection 3 | . . . 1 . 1 . 1 . Artifact . | . . . . . . . . . Weapon 17 | 2 . . 1 . . 8 6 . Energy Gun . | . . . . . . . . . Energy Cannon . | . . . . . . . . . Ballistic Gun 7 | 2 . . . . . 5 . . Ballistic Cannon . | . . . . . . . . . Launcher 5 | . . . 1 . . 2 2 . Special Weapon 1 | . . . . . . 1 . . Impact Weapon . | . . . . . . . . . Slashing Weapon 3 | . . . . . . . 3 . Piercing Weapon . | . . . . . . . . . Special Melee Weapon 1 | . . . . . . . 1 . Unidentified Prototypes 5 | . . . 1 . 1 2 1 . Parts Lost 9 | . . . . . 1 . 2 6 Power 2 | . . . . . . . . 2 Propulsion 1 | . . . . . . . . 1 Utility 4 | . . . . . 1 . 1 2 Weapon 2 | . . . . . . . 1 1 Highest Loss Streak 6 | . . . . . 1 . 1 6 To Critical Strikes . | . . . . . . . . . Average Slot Usage (%) 67 | . 50 71 78 . 61 57 60 60 Engine 3 | . . . 7 . 1 . 1 . Core 6 | . . . . . 7 12 13 11 Leg 13 | . 28 28 27 . . . . . Flight 4 | . . . . . 8 9 7 6 Device 12 | . 3 14 14 . 9 9 15 13 Storage 10 | . 4 14 13 . 9 9 7 7 Processor 1 | . . . . . . . 4 7 Ballistic Gun 9 | . 14 14 14 . 9 11 2 . Launcher 2 | . . . . . 9 4 3 4 Naked Turns . | . . . . . . . . . Heaviest Build 50 | 11 3 3 45 19 29 45 50 43 Greatest Support 50 | 20 3 3 20 20 50 50 50 50 Greatest Overweight (x) 8 | 1 . . 4 . . . . 8 Average Overweight (x) . | . . . . . . . . . Largest Inventory Capacity 20 | 8 5 5 20 10 10 15 15 15 Average Capacity 11 | 6 5 5 8 10 10 13 15 15 Most Carried 15 | 5 5 5 10 10 10 15 15 15 Average Carried 10 | 3 4 4 6 10 8 13 14 15 Final Capacity 15 | 5 5 5 10 10 10 15 15 15 Final Carried 15 | 5 5 5 10 10 10 15 15 15 Class Distribution -------------------- 86% | Mutant 13% | Commander-Mutant Dominant Class ---------------- Mutant | -10/Materials Mutant | -10/Mines Mutant | -10/Exiles Mutant | -9/Mines Mutant | -8/Materials Commander-Mutant | -8/Storage Mutant | -7/Factory Mutant | -7/Garrison Resources | -11 -10 -10 -10 -9 -8 -8 -7 -7 ----------- Run | Scr Mat Min Exi Min Mat Sto Fac Gar Matter Collected 715 | 138 . . . . . 388 189 . Remotely . | . . . . . . . . . Salvage Created 321 | . . . . . . 64 257 . Parts 31 | . . . . . . 7 24 . Haulers Intercepted 1 | . . . . . . 1 . . Recyclers Shooed . | . . . . . . . . . Parts Field Recycled . | . . . . . . . . . Retrieved Matter . | . . . . . . . . . Parts Self-Destructed . | . . . . . . . . . Prevented . | . . . . . . . . . Kills | -11 -10 -10 -10 -9 -8 -8 -7 -7 ------- Run | Scr Mat Min Exi Min Mat Sto Fac Gar Combat Hostiles Destroyed 8 | . . . . . . . 8 . AOE 8 | . . . . . . . 8 . Classes Destroyed 10 | . . . . . . 2 8 . Worker 1 | . . . . . . 1 . . Builder 1 | . . . . . . . 1 . Tunneler 1 | . . . . . . . 1 . Hauler 1 | . . . . . . 1 . . Recycler 1 | . . . . . . . 1 . Watcher 2 | . . . . . . . 2 . Swarmer 3 | . . . . . . . 3 . Grunt 3 | . . . . . . . 3 . Hunter 1 | . . . . . . . 1 . Programmer 1 | . . . . . . . 1 . Best Kill Streak 5 | . . . . . . 1 5 . Combat Bots Only 3 | . . . . . . . 3 . Max Kills in Single Turn 5 | . . . . . . 1 5 . Gunslinging . | . . . . . . . . . Exploded 2 | . . . . . . . 2 . Melee . | . . . . . . . . . Uniques/NPCs Destroyed . | . . . . . . . . . Combat | -11 -10 -10 -10 -9 -8 -8 -7 -7 -------- Run | Scr Mat Min Exi Min Mat Sto Fac Gar Damage Taken 1842 | . 93 . . . 139 284 465 861 Core 228 | . 52 . . . . 14 42 120 Absorbed by Shields 422 | . . . . . . . 159 263 Redirected to Shielding 15 | . . . . . 15 . . . Core Remaining (%) 92 | 100 . . . 79 . 97 . . Volleys Fired 25 | . . . . . . 14 11 . Largest 2 | . . . . . . 2 1 . Hottest 50 | . . . . . . 50 39 . Shots Fired 32 | . . . . . . 21 11 . Gun 12 | . . . . . . 12 . . Cannon . | . . . . . . . . . Launcher 14 | . . . . . . 3 11 . Special 6 | . . . . . . 6 . . Kinetic 12 | . . . . . . 12 . . Thermal 6 | . . . . . . 6 . . Explosive 14 | . . . . . . 3 11 . Electromagnetic . | . . . . . . . . . Robot Hit Streak 2 | . . . . . . 2 1 . Robot Miss Streak 4 | . . . . . . 4 2 . Penetration Max . | . . . . . . . . . Secondary Targets . | . . . . . . . . . Shots Hit Robots 8 | . . . . . . 3 5 . Core Hits 22 | . . . . . . 2 20 . Critical Kills . | . . . . . . . . . Critical Parts Destroyed . | . . . . . . . . . Critical Strikes . | . . . . . . . . . Melee Attacks 4 | . . . . . . . 4 . Impact . | . . . . . . . . . Slashing 4 | . . . . . . . 4 . Piercing . | . . . . . . . . . Sneak Attacks 2 | . . . . . . . 2 . Combat Hostiles . | . . . . . . . . . Follow-up Attacks . | . . . . . . . . . Damage Inflicted 1470 | . 20 . . . . 83 1367 . Guns 18 | . . . . . . 18 . . Cannons . | . . . . . . . . . Explosions 1247 | . . . . . . 41 1206 . Melee 161 | . . . . . . . 161 . Ramming 20 | . 20 . . . . . . . Kinetic 18 | . . . . . . 18 . . Thermal 466 | . . . . . . 24 442 . Explosive 805 | . . . . . . 41 764 . Electromagnetic . | . . . . . . . . . Impact . | . . . . . . . . . Slashing 161 | . . . . . . . 161 . Piercing . | . . . . . . . . . Highest Corruption . | . . . . . . . . . Average Corruption . | . . . . . . . . . Corruption Purged . | . . . . . . . . . Corruption Blocked . | . . . . . . . . . Overload Shots . | . . . . . . . . . Overflow Damage 60 | . . . . . . . 60 . Projectiles . | . . . . . . . . . Explosions 24 | . . . . . . . 24 . Melee 36 | . . . . . . . 36 . Knockbacks . | . . . . . . . . . Impact . | . . . . . . . . . Kinetic . | . . . . . . . . . Secondary . | . . . . . . . . . Self-Inflicted Damage 53 | . 9 . . . . . 44 . Shots 1 | . . . . . . . 1 . Rammed 3 | . 3 . . . . . . . Targets Rammed 3 | . 3 . . . . . . . Kicked . | . . . . . . . . . Crushed . | . . . . . . . . . Highest Temperature 96 | . . . . . 12 61 96 14 Average Temperature 25 | . . . . . 12 18 34 7 Received Heat Transfer 462 | . 30 . . . 54 90 87 201 Siege Activations . | . . . . . . . . . Robots Corrupted . | . . . . . . . . . Combat Hostiles . | . . . . . . . . . Parts Fried . | . . . . . . . . . Impact Corruptions . | . . . . . . . . . Robots Melted . | . . . . . . . . . Combat Hostiles . | . . . . . . . . . Parts Melted . | . . . . . . . . . Heat Transferred 374 | . . . . . . 74 300 . Parts Sabotaged . | . . . . . . . . . Parts Stolen . | . . . . . . . . . Parts Stripped . | . . . . . . . . . Power Chain Reactions . | . . . . . . . . . Missiles Intercepted . | . . . . . . . . . Alert | -11 -10 -10 -10 -9 -8 -8 -7 -7 ------- Run | Scr Mat Min Exi Min Mat Sto Fac Gar Peak Influence 553 | . 91 35 . . 20 200 553 552 Initial 387 | . . 35 . . . 8 79 387 Average 146 | . 53 35 . . 10 110 188 498 Maximum Alert Level 2 | . . . . . . 1 2 2 Low Security (%) 68 | 100 100 100 . 100 100 81 52 . Level 1 23 | . . . . . . 18 39 16 Level 2 8 | . . . . . . . 7 83 Level 3 . | . . . . . . . . . Level 4 . | . . . . . . . . . Level 5 . | . . . . . . . . . High Security . | . . . . . . . . . Max Security . | . . . . . . . . . Squads Dispatched 5 | . . . . . 1 1 3 . Investigation . | . . . . . . . . . Extermination 1 | . . . . . . . 1 . Reinforcement 4 | . . . . . 1 1 2 . Assault . | . . . . . . . . . Garrison . | . . . . . . . . . Intercept . | . . . . . . . . . Searches Triggered . | . . . . . . . . . Construction Impeded . | . . . . . . . . . Haulers Reinforced . | . . . . . . . . . Active Scanning Responses . | . . . . . . . . . Cargo Convoy Interrupts . | . . . . . . . . . Stealth | -11 -10 -10 -10 -9 -8 -8 -7 -7 --------- Run | Scr Mat Min Exi Min Mat Sto Fac Gar Distress Signals 6 | . . . . . . 3 3 . Communications Jammed . | . . . . . . . . . Distress Signals . | . . . . . . . . . Times Spotted 77 | . 7 . . . 9 19 26 16 Peak Tracking Total 13 | . 6 . . . 9 11 7 13 Tactical Retreats 11 | . 2 . . . . 2 6 1 Traps | -11 -10 -10 -10 -9 -8 -8 -7 -7 ------- Run | Scr Mat Min Exi Min Mat Sto Fac Gar Traps Triggered 8 | . 1 . . . . . 3 4 Indirectly . | . . . . . . . . . Trap Hack Attempts . | . . . . . . . . . Triggered . | . . . . . . . . . Disarmed . | . . . . . . . . . Reprogrammed . | . . . . . . . . . Reused . | . . . . . . . . . Traps Extracted . | . . . . . . . . . Installed . | . . . . . . . . . Triggered . | . . . . . . . . . Machines | -11 -10 -10 -10 -9 -8 -8 -7 -7 ---------- Run | Scr Mat Min Exi Min Mat Sto Fac Gar Machines Disabled 8 | . . . . . . 2 6 . Max in Single Turn 4 | . . . . . . 1 4 . Garrison Access 1 | . . . . . . 1 . . Machines Sabotaged . | . . . . . . . . . Garrisons Compromised . | . . . . . . . . . Overloaded Fab Kills . | . . . . . . . . . Hacking | -11 -10 -10 -10 -9 -8 -8 -7 -7 --------- Run | Scr Mat Min Exi Min Mat Sto Fac Gar Machines Accessed 27 | . 4 . 3 . . 9 11 . Terminals 20 | . 4 . . . . 8 8 . Fabricators . | . . . . . . . . . Repair Stations 1 | . . . . . . . 1 . Recycling Units 1 | . . . . . . . 1 . Scanalyzers . | . . . . . . . . . Garrison Access 2 | . . . . . . 1 1 . Total Hacks 89 | . 18 . 26 . . 24 21 . Successful 71 | . 14 . 26 . . 18 13 . Failed 18 | . 4 . . . . 6 8 . Catastrophic . | . . . . . . . . . Database Lockouts . | . . . . . . . . . Manual 50 | . 18 . 1 . . 17 14 . Terminals 58 | . 18 . . . . 23 17 . Fabricators . | . . . . . . . . . Repair Stations 2 | . . . . . . . 2 . Recycling Units 1 | . . . . . . . 1 . Scanalyzers . | . . . . . . . . . Garrison Access 2 | . . . . . . 1 1 . Terminal Hacks 41 | . 3 . 26 . . 9 3 . Record 26 | . . . 26 . . . . . Part Schematic 3 | . 1 . . . . 2 . . Open Door 3 | . . . . . . 3 . . Open DSF 2 | . . . . . . . 2 . Level Access Points 1 | . . . . . . 1 . . Terminal Index 3 | . 1 . . . . 1 1 . Security Status 1 | . 1 . . . . . . . Registered Components 1 | . . . . . . 1 . . Zone Layout 1 | . . . . . . 1 . . Fabricator Hacks . | . . . . . . . . . Repair Station Hacks 1 | . . . . . . . 1 . Refit 1 | . . . . . . . 1 . Recycling Unit Hacks . | . . . . . . . . . Scanalyzer . | . . . . . . . . . Garrison Access Hacks 2 | . . . . . . 1 1 . Unlock Access 1 | . . . . . . . 1 . Seal Access 1 | . . . . . . 1 . . Unauthorized Hacks 27 | . 11 . . . . 8 8 . Terminals 27 | . 11 . . . . 8 8 . Track 5 | . 2 . . . . 2 1 . Assimilate 5 | . 4 . . . . . 1 . Botnet 15 | . 4 . . . . 5 6 . Operators 2 | . 1 . . . . 1 . . Fabricators . | . . . . . . . . . Repair Stations . | . . . . . . . . . Recycling Units . | . . . . . . . . . Scanalyzers . | . . . . . . . . . Garrison Access . | . . . . . . . . . Data Cores Recovered . | . . . . . . . . . Used . | . . . . . . . . . Hacking Detections 19 | . 4 . . . . 7 8 . Full Trace Events . | . . . . . . . . . Feedback Events . | . . . . . . . . . Feedback Blocked . | . . . . . . . . . Robot Schematics Acquired . | . . . . . . . . . Robots Built . | . . . . . . . . . Authchips . | . . . . . . . . . Time . | . . . . . . . . . Total Robot Build Rating . | . . . . . . . . . Part Schematics Acquired 3 | . 1 . . . . 2 . . Parts Built . | . . . . . . . . . Authchips . | . . . . . . . . . Time . | . . . . . . . . . Total Part Build Rating . | . . . . . . . . . Parts Repaired . | . . . . . . . . . Time . | . . . . . . . . . Parts Recycled . | . . . . . . . . . Recycled Matter . | . . . . . . . . . Retrieved Matter . | . . . . . . . . . Retrieved Components . | . . . . . . . . . Parts Scanalyzed . | . . . . . . . . . Part Schematics Acquired . | . . . . . . . . . Parts Damaged . | . . . . . . . . . Bothacking | -11 -10 -10 -10 -9 -8 -8 -7 -7 ------------ Run | Scr Mat Min Exi Min Mat Sto Fac Gar Used RIF Installer . | . . . . . . . . . Robots Hacked . | . . . . . . . . . Non-combat . | . . . . . . . . . Combat . | . . . . . . . . . Robot Hacks Applied . | . . . . . . . . . Relay Couplers Released . | . . . . . . . . . Fabnet Peak Effective % . | . . . . . . . . . Robots Rewired . | . . . . . . . . . Allies Hacked . | . . . . . . . . . Hacks Repelled . | . . . . . . . . . Allies | -11 -10 -10 -10 -9 -8 -8 -7 -7 -------- Run | Scr Mat Min Exi Min Mat Sto Fac Gar Total Allies 11 | . . . . . . 10 1 . Largest Group 10 | . . . . . . 10 1 . Highest-Rated Group 173 | . . . . . . 173 10 . Highest-Rated Ally 29 | . . . . . . 29 10 . Total Orders 11 | . . . . . . 10 1 . STAY 11 | . . . . . . 10 1 . Ally Attacks 47 | . . . . . . 47 . . Total Damage 632 | . . . . . . 632 . . Kills 9 | . . . . . . 9 . . Allies Corrupted . | . . . . . . . . . Allies Melted . | . . . . . . . . . Turrets Deployed 1 | . . . 1 . . . . . Intel | -11 -10 -10 -10 -9 -8 -8 -7 -7 ------- Run | Scr Mat Min Exi Min Mat Sto Fac Gar Robot Analysis Total . | . . . . . . . . . Derelict Logs Recovered . | . . . . . . . . . Drone Launches . | . . . . . . . . . Drone Recoveries . | . . . . . . . . . Exploration | -11 -10 -10 -10 -9 -8 -8 -7 -7 ------------- Run | Scr Mat Min Exi Min Mat Sto Fac Gar Turns Passed 4112 | 62 192 31 1727 5 226 731 1003 135 Spaces Moved 5122 | 45 311 47 2163 5 94 700 1575 182 Core 1882 | 15 311 47 1506 . . . . 3 Treads . | . . . . . . . . . Legs 692 | 30 . . 657 5 . . . . Wheels . | . . . . . . . . . Hover . | . . . . . . . . . Flight 2548 | . . . . . 94 700 1575 179 Fastest Speed 50 | 50 50 50 50 120 50 50 50 50 Average Speed 62 | 102 50 50 77 120 50 50 50 56 Slowest Speed 450 | 120 50 50 260 120 50 50 50 450 Overloaded Moves . | . . . . . . . . . Propulsion Burnouts . | . . . . . . . . . Robots Hopped 46 | . . . 2 . . 17 19 8 Cave-ins Triggered . | . . . . . . . . . Exploration Rate (%) 38 | 4 65 9 94 6 8 75 39 42 Regions Visited 8 Branch Regions 4 Pre-discovered Areas . | . . . . . . . . . Known Exits Taken 2 | . . . . . . 1 1 . Unknown Exits Taken 6 | 1 1 1 1 1 1 . . . Scrap Searched . | . . . . . . . . . Spaces Dug . | . . . . . . . . . Terrain Destroyed 147 | . . . . . . 23 124 . Melee . | . . . . . . . . . Projectile . | . . . . . . . . . AOE 147 | . . . . . . 23 124 . Terrain Rammed . | . . . . . . . . . Walls Destroyed . | . . . . . . . . . Machines Disabled . | . . . . . . . . . Actions | -11 -10 -10 -10 -9 -8 -8 -7 -7 --------- Run | Scr Mat Min Exi Min Mat Sto Fac Gar Total 5951 | 59 350 54 2208 4 272 1039 1761 204 Wait 633 | 2 25 6 5 . 167 318 107 3 Move 5025 | 44 310 46 2158 4 93 668 1537 165 Hop 40 | . . . 2 . . 14 18 6 Pick Up 50 | 6 2 1 16 . 5 7 13 . Fast Attach 22 | 4 2 . 6 . 1 3 6 . Attach 16 | 2 . . 3 . 2 2 7 . Detach 10 | 1 2 . 1 . . 2 4 . Swap 15 | . 1 . 3 . 1 7 3 . Drop 47 | . 5 1 14 . 3 4 20 . Fire 25 | . . . . . . 14 11 . Melee 4 | . . . . . . . 4 . Ram 3 | . 3 . . . . . . . Kick . | . . . . . . . . . Crush . | . . . . . . . . . Escape Stasis 61 | . . . . . . . 31 30 Rewire . | . . . . . . . . . Trap . | . . . . . . . . . Miscellaneous . | . . . . . . . . . Route ------- -11/Scrapyard -10/Materials (discovered 2 exits: [*Mat] / [*Min]) -10/Mines -10/Exiles (discovered 2 exits: [*Min x2]) -9/Mines -8/Materials -8/Storage -7/Factory (discovered 3 exits: *Fac / [*Low] / Gar) -7/Garrison (discovered 1 exit: *Fac) History --------- Turn | Location | Event 9 | -11/Scrapyard | Discovered new exit (range 15) 63 | -11/Scrapyard | Entered Materials 167 | -10/Materials | Discovered new exit (range 8) 214 | -10/Materials | Discovered new exit (range 8) 255 | -10/Materials | Entered Mines 262 | -10/Mines | Received a Rocket Launcher from a helpful Derelict 284 | -10/Mines | Deemed a non-threat by the Exiles lab entrance 284 | -10/Mines | Discovered new exit (range 5) 286 | -10/Mines | Entered Exiles 299 | -10/Exiles | Met 8R-AWN 303 | -10/Exiles | Build established: Mutant 307 | -10/Exiles | Met EX-HEX 324 | -10/Exiles | Met EX-BIN 374 | -10/Exiles | Met EX-DEC 413 | -10/Exiles | Visited The Gauntlet 497 | -10/Exiles | Discovered new exit (range 14) 586 | -10/Exiles | Discovered new exit (range 15) 1014 | -10/Exiles | Aligned with FarCom system 1015 | -10/Exiles | Given EX-Vault access code 1028 | -10/Exiles | Opened EX-Vault 1032 | -10/Exiles | Found Prototype Device 1032 | -10/Exiles | Identified Cloak of Protection 1056 | -10/Exiles | Found Prototype Flight Unit 1080 | -10/Exiles | Found Deploy-a-Sentry 1082 | -10/Exiles | DAS Turret deployed 1157 | -10/Exiles | Warned to stay clear of 0b10 Research branches 1390 | -10/Exiles | Found Deploy-a-Sentry 1392 | -10/Exiles | Found Deploy-a-Sentry 2013 | -10/Exiles | Stole three prototypes: Cloak of Protection, Deploy-a-Sentry, Flying Fortress v7 2013 | -10/Exiles | Entered Mines 2013 | -9/Mines | Discovered new exit (range 5) 2018 | -9/Mines | Entered Materials 2018 | -8/Materials | Evolved 4 slots: Power x1, Propulsion x2, Utility x1 2020 | -8/Materials | Identified Flying Fortress v7 2228 | -8/Materials | Discovered new exit (range 16) 2244 | -8/Materials | Entered Storage 2289 | -8/Storage | Identified exit to Factory 2311 | -8/Storage | Assisted by bots powering up and referring to "LRC-V3" 2618 | -8/Storage | Build established: Commander-Mutant 2975 | -8/Storage | Entered Factory 2975 | -7/Factory | Evolved 2 slots: Utility x2 2977 | -7/Factory | FarCom data flow suspended 3039 | -7/Factory | Discovered new exit (range 9) 3177 | -7/Factory | Build established: Mutant 3197 | -7/Factory | Discovered new exit (range 16) 3977 | -7/Factory | Identified exit to Garrison 3978 | -7/Factory | Entered Garrison 4000 | -7/Garrison | Triggered checkpoint 4032 | -7/Garrison | Triggered checkpoint 4033 | -7/Garrison | Triggered checkpoint 4060 | -7/Garrison | Discovered new exit (range 8) 4066 | -7/Garrison | Triggered checkpoint 4080 | -7/Garrison | Identified exit to Factory 4081 | -7/Garrison | Attempted to access garrison exit controls, blocked by remote lockdown 4113 | -7/Garrison | Self-destructed Last Messages --------------- 04083_ Critical hit (Burn: +27). 04083_ S-27 Virus destroyed. 04085_ Mic. Nuclear Core destroyed. 04087_ Slug penetrates Wall. 04089_ Critical hit (Burn: +37). 04089_ Triggered Stasis Trap. 04089_ A bubble of rippling energy engulfs the area. 04089_ Field strength at 77. 04090_ Field strength at 54. 04091_ Field strength at 31. 04092_ Stasis field depleted. 04092_ Triggered Stasis Trap. 04092_ A bubble of rippling energy engulfs the area. 04092_ Field strength at 77. 04092_ Field strength at 54. 04093_ Sensor Array destroyed. 04093_ Field strength at 22. 04094_ Stasis field depleted. 04099_ Flying Fortress v7 destroyed. 04110_ Imp. Shield Generator destroyed. Map ----- +----------------------------------------------------+ | ?????????????????????????????????????????????????? | | ?????????????????????????????????????????????????? | | ?????????????????????????????????????????????????? | | ?????????????????????????????????????????????????? | | ?????????????????????????????????????????????????? | | ?????????????????????????????????????????????????? | | ?????????????????????????????????????????????????? | | ?????????????????????????????????????????????????? | | ?????????????????????????????????????????????????? | | ?????????????????????????????????????????????????? | | ???????????#######???????????????????????????????? | | ???????????# [#???????????????????????????????? | | ???######### =%###?????????????????????????????? | | ???# * #?????????????????????????????? | | ???# ######+#### #?????????????????????????????? | | ??#"""""#???# ???# #?????????????????????????????? | | ??#######???#????# #???#####?????????????????????? | | ????????????#????# #???# #?????????????????????? | | ????????????# #### ##### < #?????????????????????? | | ????????????# + [% #?????????????????????? | | ????????????# ## = #?????????????????????? | | ???????????????# #######Y##?????????????????????? | | ???????????????# #?????# #??????????????????????? | | ???????????????# #?????# #??????????????????????? | | ???????????????# #?????# #??????????????????????? | | ???????????????# #?????#@#??????????????????????? | | ???????????????+ #?????#g#??????????????????????? | | ???????????????# #?#####s#####??????????????????? | | ####???????????# #?# #??????????????????? | | #???????????# #?# #??????????????????? | | ######??????# #?# #??????????????????? | | ######## ### " #??????????????????? | | + """ """"#????????????????? | | ### " "###????????????????? | | ## ###########?# "#??????????????????? | | ## #???????????# " "#??????????????????? | | "???????????# """""#??????????????????? | | "???????????###########??????????????????? | | "????????????????????????????????????????? | | "????????????????????????????????????????? | | ## #????????????????????????????????????????? | | ## #????????????????????????????????????????? | | ???????????????????????????????????????? | | ???????????????????????????????????????? | | ###??????????????????????????????????????? | | """## ##????????????????????????????????????????? | | ????# ??????????????????????????????????????????? | | ????? ??????????????????????????????????????????? | | ?????????????????????????????????????????????????? | | ?????????????????????????????????????????????????? | +----------------------------------------------------+ Best States ------------- Heat Dissipation 34 Energy Generation 27 Energy Capacity 370 Matter Stores 300 Matter Capacity 300 Sight Range 16 Robot Scan Range 14 Terrain Scan Density 10 Cloak Strength 5 Armor Coverage 150 Utility Shielding 33 Evasion (%) 60 Item Schematics ----------------- Hcp. Storage Unit | -10/Materials | Hacked Hvy. Particle Cannon | -8/Storage | Hacked Shield Generator | -8/Storage | Hacked Robot Schematics ------------------ None Fabricated ------------ Nothing Alien Tech Used ----------------- None Achievements -------------- None Challenges ------------ None Game ------ Seed RestorationCouplerRigger Manual? 0 Play Time 01:08:28 Cumulative 54.3 hours Start 2022.07.10 @ 19:33:20 End 2022.07.10 @ 21:26:20 Sessions 1 Manual Loads 0 Difficulty Rogue Special Mode None Game No. 42 Rogue 42 Adventurer 0 Explorer 0 Win Type - Total 0 Types 0/0/0/0/0/0/0/0/0 Lore% 43 Gallery% 49 Achievement% 46 Wizard Run 0 Options --------- ASCII 0 Keyboard 0 Movement Numpad Keybinds 0 Fullscreen 1 Font 36/Smallcaps Map View 76x50 Tactical HUD 1 Map Filters NONE Filters NONE Steam 1 RUN: 4666f655-26a8-4b04-860f-3fd9640eb85b